[Event "Titled Tuesday Blitz June 6 Late 2023"]
[White "Krsnik Cohar, Ivan Vihor"]
[Black "Hoffmann, Asa"]
[WhiteFideId "14520044"]
[BlackFideId "2001470"]
[WhiteElo "2414"]
[BlackElo "2117"]
[Result "1-0"]
[Round "3"]
[TimeControl "180+2"]
[Date "2023.06.07"]
[WhiteClock "0:00:05"]
[BlackClock "0:00:54"]
[Board "130"]

1. e4 {[%clk 0:03:00]}  d6 {[%clk 0:02:58]} 2. Nf3 {[%clk 0:03:00]}  Bg4 {[%clk 0:02:56]} 3. Bc4 {[%clk 0:03:00]}  e6 {[%clk 0:02:53]} 4. d4 {[%clk 0:02:58]}  Nf6 {[%clk 0:02:53]} 5. Nc3 {[%clk 0:02:58]}  c6 {[%clk 0:02:53]} 6. O-O {[%clk 0:02:58]}  d5 {[%clk 0:02:53]} 7. exd5 {[%clk 0:02:57]}  cxd5 {[%clk 0:02:53]} 8. Bb5+ {[%clk 0:02:57]}  Nc6 {[%clk 0:02:52]} 9. h3 {[%clk 0:02:57]}  Bh5 {[%clk 0:02:52]} 10. g4 {[%clk 0:02:57]}  Bg6 {[%clk 0:02:52]} 11. Ne5 {[%clk 0:02:58]}  Rc8 {[%clk 0:02:51]} 12. f4 {[%clk 0:02:58]}  Bb4 {[%clk 0:02:47]} 13. Qf3 {[%clk 0:02:48]}  O-O {[%clk 0:02:42]} 14. Bxc6 {[%clk 0:02:48]}  bxc6 {[%clk 0:02:42]} 15. f5 {[%clk 0:02:48]}  exf5 {[%clk 0:02:39]} 16. gxf5 {[%clk 0:02:49]}  Bh5 {[%clk 0:02:39]} 17. Qg3 {[%clk 0:02:49]}  Kh8 {[%clk 0:02:27]} 18. Qh4 {[%clk 0:02:35]}  Bxc3 {[%clk 0:02:20]} 19. bxc3 {[%clk 0:02:35]}  Be2 {[%clk 0:02:11]} 20. Re1 {[%clk 0:02:30]}  Ba6 {[%clk 0:02:08]} 21. Ba3 {[%clk 0:02:25]}  Ne4 {[%clk 0:02:05]} 22. Qxd8 {[%clk 0:02:21]}  Rcxd8 {[%clk 0:02:03]} 23. Nxc6 {[%clk 0:02:04]}  Rfe8 {[%clk 0:01:55]} 24. Nxd8 {[%clk 0:01:50]}  Rxd8 {[%clk 0:01:55]} 25. Bc5 {[%clk 0:01:21]}  Bc8 {[%clk 0:01:50]} 26. c4 {[%clk 0:01:13]}  Bxf5 {[%clk 0:01:47]} 27. cxd5 {[%clk 0:01:13]}  Rxd5 {[%clk 0:01:44]} 28. Bxa7 {[%clk 0:01:07]}  h5 {[%clk 0:01:40]} 29. a3 {[%clk 0:01:00]}  Ng5 {[%clk 0:01:36]} 30. Re8+ {[%clk 0:00:43]}  Kh7 {[%clk 0:01:36]} 31. a4 {[%clk 0:00:44]}  Nxh3+ {[%clk 0:01:29]} 32. Kh2 {[%clk 0:00:39]}  Ng5 {[%clk 0:01:27]} 33. a5 {[%clk 0:00:39]}  Bxc2 {[%clk 0:01:25]} 34. a6 {[%clk 0:00:36]}  Rf5 {[%clk 0:01:25]} 35. Re2 {[%clk 0:00:23]}  Be4 {[%clk 0:01:23]} 36. Rxe4 {[%clk 0:00:13]}  Nxe4 {[%clk 0:01:22]} 37. Bb8 {[%clk 0:00:13]}  Rf2+ {[%clk 0:01:16]} 38. Kg1 {[%clk 0:00:13]}  Rf6 {[%clk 0:01:07]} 39. a7 {[%clk 0:00:13]}  Rg6+ {[%clk 0:01:06]} 40. Kh2 {[%clk 0:00:13]}  Nf6 {[%clk 0:01:05]} 41. a8=Q {[%clk 0:00:10]}  Ng4+ {[%clk 0:01:05]} 42. Kg3 {[%clk 0:00:06]}  Nf6+ {[%clk 0:01:03]} 43. Kf3 {[%clk 0:00:06]}  Ng4 {[%clk 0:01:02]} 44. Qe4 {[%clk 0:00:03]}  Nf6 {[%clk 0:01:00]} 45. Qf5 {[%clk 0:00:03]}  Kh6 {[%clk 0:00:59]} 46. Be5 {[%clk 0:00:03]}  Rg5 {[%clk 0:00:59]} 47. Bf4 {[%clk 0:00:03]}  Nh7 {[%clk 0:00:57]} 48. Bxg5+ {[%clk 0:00:03]}  Nxg5+ {[%clk 0:00:57]} 49. Ke2 {[%clk 0:00:02]}  f6 {[%clk 0:00:57]} 50. d5 {[%clk 0:00:02]}  h4 {[%clk 0:00:57]} 51. Rg1 {[%clk 0:00:03]}  h3 {[%clk 0:00:57]} 52. Rxg5 {[%clk 0:00:03]}  fxg5 {[%clk 0:00:56]} 53. Qxh3+ {[%clk 0:00:04]}  Kg6 {[%clk 0:00:56]} 54. Qg4 {[%clk 0:00:04]}  Kf6 {[%clk 0:00:56]} 55. d6 {[%clk 0:00:05]}  Kf7 {[%clk 0:00:55]} 56. Qf5+ {[%clk 0:00:04]}  Ke8 {[%clk 0:00:55]} 57. Qe6+ {[%clk 0:00:05]}  Kf8 {[%clk 0:00:54]} 58. d7 {[%clk 0:00:05]} 1-0


[Site "https://www.chess.com"]

[Event "Titled Tuesday Blitz June 6 Late 2023"]
[White "Djabri,Massinas"]
[Black "Liu, Eric"]
[WhiteFideId "7905726"]
[BlackFideId "30960240"]
[WhiteElo "2194"]
[BlackElo "2094"]
[Result "1-0"]
[Round "3"]
[TimeControl "180+2"]
[Date "2023.06.07"]
[WhiteClock "0:00:23"]
[BlackClock "0:00:52"]
[Board "133"]

1. d4 {[%clk 0:03:00]}  b6 {[%clk 0:03:00]} 2. e4 {[%clk 0:02:57]}  Bb7 {[%clk 0:03:01]} 3. Nc3 {[%clk 0:02:57]}  e6 {[%clk 0:03:02]} 4. Be3 {[%clk 0:02:56]}  h5 {[%clk 0:03:02]} 5. Qd2 {[%clk 0:02:54]}  h4 {[%clk 0:03:03]} 6. O-O-O {[%clk 0:02:52]}  Nf6 {[%clk 0:03:03]} 7. d5 {[%clk 0:02:49]}  e5 {[%clk 0:03:00]} 8. f4 {[%clk 0:02:45]}  d6 {[%clk 0:03:00]} 9. fxe5 {[%clk 0:02:45]}  dxe5 {[%clk 0:03:01]} 10. Nf3 {[%clk 0:02:41]}  Nbd7 {[%clk 0:03:01]} 11. Bb5 {[%clk 0:02:41]}  Bd6 {[%clk 0:03:01]} 12. Bc6 {[%clk 0:02:40]}  Qc8 {[%clk 0:03:00]} 13. Nb5 {[%clk 0:02:34]}  a6 {[%clk 0:02:57]} 14. Nxd6+ {[%clk 0:02:30]}  cxd6 {[%clk 0:02:58]} 15. Bxd7+ {[%clk 0:02:12]}  Qxd7 {[%clk 0:02:52]} 16. Qd3 {[%clk 0:02:05]}  Qc7 {[%clk 0:02:50]} 17. Bg5 {[%clk 0:01:55]}  Nd7 {[%clk 0:02:45]} 18. Bxh4 {[%clk 0:01:51]}  f6 {[%clk 0:02:43]} 19. Bf2 {[%clk 0:01:49]}  b5 {[%clk 0:02:40]} 20. Kb1 {[%clk 0:01:46]}  Rc8 {[%clk 0:02:40]} 21. Rc1 {[%clk 0:01:45]}  Nc5 {[%clk 0:02:23]} 22. Bxc5 {[%clk 0:01:42]}  Qxc5 {[%clk 0:02:24]} 23. h4 {[%clk 0:01:41]}  a5 {[%clk 0:02:18]} 24. g4 {[%clk 0:01:36]}  Kd7 {[%clk 0:02:15]} 25. h5 {[%clk 0:01:33]}  Kc7 {[%clk 0:02:15]} 26. Nh4 {[%clk 0:01:31]}  Kb8 {[%clk 0:02:11]} 27. Nf5 {[%clk 0:01:30]}  Rc7 {[%clk 0:02:12]} 28. Qe3 {[%clk 0:01:23]}  Qxe3 {[%clk 0:01:57]} 29. Nxe3 {[%clk 0:01:24]}  Bc8 {[%clk 0:01:57]} 30. b3 {[%clk 0:01:15]}  Rc3 {[%clk 0:01:55]} 31. Rce1 {[%clk 0:01:15]}  Rc7 {[%clk 0:01:41]} 32. Kb2 {[%clk 0:01:13]}  Kb7 {[%clk 0:01:40]} 33. Rc1 {[%clk 0:01:04]}  Kb6 {[%clk 0:01:35]} 34. Rhg1 {[%clk 0:01:02]}  Rg8 {[%clk 0:01:27]} 35. c4 {[%clk 0:01:01]}  b4 {[%clk 0:01:26]} 36. g5 {[%clk 0:00:48]}  Rh8 {[%clk 0:01:23]} 37. h6 {[%clk 0:00:46]}  fxg5 {[%clk 0:01:23]} 38. c5+ {[%clk 0:00:41]}  Rxc5 {[%clk 0:01:21]} 39. Nc4+ {[%clk 0:00:31]}  Kc7 {[%clk 0:01:15]} 40. hxg7 {[%clk 0:00:29]}  Rg8 {[%clk 0:01:11]} 41. Rxg5 {[%clk 0:00:28]}  Ba6 {[%clk 0:00:51]} 42. Rf1 {[%clk 0:00:23]}  Kb8 {[%clk 0:00:49]} 43. Rf8+ {[%clk 0:00:17]}  Rc8 {[%clk 0:00:49]} 44. Rxc8+ {[%clk 0:00:16]}  Kxc8 {[%clk 0:00:50]} 45. Nxd6+ {[%clk 0:00:16]}  Kd7 {[%clk 0:00:51]} 46. Nf5 {[%clk 0:00:16]}  Bd3 {[%clk 0:00:45]} 47. Nh6 {[%clk 0:00:16]}  Bxe4 {[%clk 0:00:41]} 48. Nxg8 {[%clk 0:00:17]}  Kd6 {[%clk 0:00:39]} 49. Nh6 {[%clk 0:00:18]}  Bxd5 {[%clk 0:00:39]} 50. g8=Q {[%clk 0:00:18]}  Bxg8 {[%clk 0:00:39]} 51. Nxg8 {[%clk 0:00:19]}  Kd5 {[%clk 0:00:39]} 52. Kc2 {[%clk 0:00:18]}  Kd4 {[%clk 0:00:39]} 53. Kd2 {[%clk 0:00:18]}  e4 {[%clk 0:00:40]} 54. Rg4 {[%clk 0:00:18]}  Ke5 {[%clk 0:00:40]} 55. Nf6 {[%clk 0:00:18]}  Kxf6 {[%clk 0:00:40]} 56. Rxe4 {[%clk 0:00:18]}  Kf5 {[%clk 0:00:41]} 57. Re1 {[%clk 0:00:19]}  a4 {[%clk 0:00:42]} 58. Kd3 {[%clk 0:00:20]}  axb3 {[%clk 0:00:43]} 59. axb3 {[%clk 0:00:19]}  Kf4 {[%clk 0:00:43]} 60. Kc4 {[%clk 0:00:19]}  Kg3 {[%clk 0:00:44]} 61. Kxb4 {[%clk 0:00:20]}  Kg4 {[%clk 0:00:45]} 62. Kc3 {[%clk 0:00:20]}  Kh3 {[%clk 0:00:46]} 63. Kd2 {[%clk 0:00:20]}  Kh4 {[%clk 0:00:47]} 64. Rg1 {[%clk 0:00:20]}  Kh5 {[%clk 0:00:47]} 65. Ke3 {[%clk 0:00:21]}  Kh6 {[%clk 0:00:48]} 66. Kf4 {[%clk 0:00:21]}  Kh7 {[%clk 0:00:49]} 67. Kf5 {[%clk 0:00:21]}  Kh8 {[%clk 0:00:50]} 68. Kf6 {[%clk 0:00:22]}  Kh7 {[%clk 0:00:51]} 69. Rg2 {[%clk 0:00:22]}  Kh8 {[%clk 0:00:51]} 70. Kf7 {[%clk 0:00:22]}  Kh7 {[%clk 0:00:52]} 71. Rh2# {[%clk 0:00:23]} 1-0


[Site "https://www.chess.com"]

[Event "Titled Tuesday Blitz June 6 Late 2023"]
[White "Barria Santos, Jose Guilherme"]
[Black "Spichkin, Alexander"]
[WhiteFideId "1939300"]
[BlackFideId "4144074"]
[WhiteElo "2266"]
[BlackElo "1986"]
[Result "1-0"]
[Round "3"]
[TimeControl "180+2"]
[Date "2023.06.07"]
[WhiteClock "0:00:51"]
[BlackClock "0:01:28"]
[Board "134"]

1. c4 {[%clk 0:02:56]}  f5 {[%clk 0:02:59]} 2. Nc3 {[%clk 0:02:56]}  Nf6 {[%clk 0:02:59]} 3. Nf3 {[%clk 0:02:56]}  d6 {[%clk 0:02:59]} 4. d4 {[%clk 0:02:56]}  e6 {[%clk 0:02:59]} 5. g3 {[%clk 0:02:56]}  Be7 {[%clk 0:02:59]} 6. Bg2 {[%clk 0:02:57]}  O-O {[%clk 0:03:00]} 7. O-O {[%clk 0:02:57]}  a5 {[%clk 0:02:59]} 8. Re1 {[%clk 0:02:55]}  Ne4 {[%clk 0:02:59]} 9. Qd3 {[%clk 0:02:49]}  Nc6 {[%clk 0:02:57]} 10. Nxe4 {[%clk 0:02:48]}  Nb4 {[%clk 0:02:57]} 11. Qb1 {[%clk 0:02:43]}  fxe4 {[%clk 0:02:58]} 12. Qxe4 {[%clk 0:02:44]}  e5 {[%clk 0:02:58]} 13. Qb1 {[%clk 0:02:36]}  e4 {[%clk 0:02:47]} 14. Nd2 {[%clk 0:02:35]}  e3 {[%clk 0:02:36]} 15. fxe3 {[%clk 0:02:36]}  Bg5 {[%clk 0:02:37]} 16. Nf3 {[%clk 0:02:31]}  Bh6 {[%clk 0:02:35]} 17. a3 {[%clk 0:02:24]}  Nc6 {[%clk 0:02:35]} 18. e4 {[%clk 0:02:20]}  Bxc1 {[%clk 0:02:30]} 19. Qxc1 {[%clk 0:02:21]}  Bg4 {[%clk 0:02:29]} 20. Qe3 {[%clk 0:02:21]}  Qe7 {[%clk 0:02:28]} 21. Rab1 {[%clk 0:01:51]}  a4 {[%clk 0:02:27]} 22. Nd2 {[%clk 0:01:43]}  Rae8 {[%clk 0:02:16]} 23. Bf3 {[%clk 0:01:41]}  Bh3 {[%clk 0:02:15]} 24. Rbd1 {[%clk 0:01:40]}  Qf6 {[%clk 0:02:11]} 25. Nb1 {[%clk 0:01:40]}  Ne7 {[%clk 0:02:09]} 26. Nc3 {[%clk 0:01:39]}  c6 {[%clk 0:02:06]} 27. Nxa4 {[%clk 0:01:34]}  Nf5 {[%clk 0:02:02]} 28. Qf2 {[%clk 0:01:33]}  Nh6 {[%clk 0:01:57]} 29. Qe3 {[%clk 0:01:26]}  Nf5 {[%clk 0:01:55]} 30. Qd3 {[%clk 0:01:24]}  Nh6 {[%clk 0:01:46]} 31. Nc3 {[%clk 0:01:21]}  c5 {[%clk 0:01:39]} 32. Nd5 {[%clk 0:01:12]}  Qf5 {[%clk 0:01:39]} 33. exf5 {[%clk 0:00:58]}  Bxf5 {[%clk 0:01:37]} 34. e4 {[%clk 0:00:58]}  Bh3 {[%clk 0:01:37]} 35. dxc5 {[%clk 0:00:58]}  dxc5 {[%clk 0:01:37]} 36. e5 {[%clk 0:00:58]}  Nf5 {[%clk 0:01:36]} 37. Nf4 {[%clk 0:00:54]}  Nd4 {[%clk 0:01:33]} 38. Bd5+ {[%clk 0:00:54]}  Be6 {[%clk 0:01:29]} 39. Nxe6 {[%clk 0:00:52]}  Nf3+ {[%clk 0:01:29]} 40. Bxf3 {[%clk 0:00:50]}  Rxe6 {[%clk 0:01:28]} 41. Bd5 {[%clk 0:00:51]} 1-0


[Site "https://www.chess.com"]

[Event "Titled Tuesday Blitz June 6 Late 2023"]
[White "Lima, Kleyton Alcantara"]
[Black "Brown, Raehanna"]
[WhiteFideId "22718397"]
[BlackFideId "7402740"]
[WhiteElo "2009"]
[BlackElo "1655"]
[Result "1-0"]
[Round "3"]
[TimeControl "180+2"]
[Date "2023.06.07"]
[WhiteClock "0:01:30"]
[BlackClock "0:00:50"]
[Board "137"]

1. e4 {[%clk 0:03:00]}  c5 {[%clk 0:02:54]} 2. Nf3 {[%clk 0:03:00]}  Nc6 {[%clk 0:02:54]} 3. d4 {[%clk 0:03:01]}  cxd4 {[%clk 0:02:55]} 4. Nxd4 {[%clk 0:03:02]}  Nf6 {[%clk 0:02:55]} 5. Nc3 {[%clk 0:03:02]}  g6 {[%clk 0:02:56]} 6. Nxc6 {[%clk 0:03:02]}  dxc6 {[%clk 0:02:56]} 7. Qxd8+ {[%clk 0:03:01]}  Kxd8 {[%clk 0:02:57]} 8. Bc4 {[%clk 0:03:00]}  e6 {[%clk 0:02:55]} 9. Bg5 {[%clk 0:02:58]}  Be7 {[%clk 0:02:54]} 10. e5 {[%clk 0:02:55]}  Nd5 {[%clk 0:02:54]} 11. Bxe7+ {[%clk 0:02:55]}  Kxe7 {[%clk 0:02:55]} 12. Ne4 {[%clk 0:02:55]}  b5 {[%clk 0:02:46]} 13. Bxd5 {[%clk 0:02:53]}  exd5 {[%clk 0:02:46]} 14. Nc5 {[%clk 0:02:46]}  Bf5 {[%clk 0:02:41]} 15. Kd2 {[%clk 0:02:45]}  Rhe8 {[%clk 0:02:39]} 16. f4 {[%clk 0:02:43]}  a5 {[%clk 0:02:28]} 17. a3 {[%clk 0:02:40]}  Kf8 {[%clk 0:02:24]} 18. h3 {[%clk 0:02:40]}  h5 {[%clk 0:02:23]} 19. Rhg1 {[%clk 0:02:39]}  h4 {[%clk 0:02:22]} 20. b4 {[%clk 0:02:37]}  axb4 {[%clk 0:02:21]} 21. axb4 {[%clk 0:02:38]}  Kg7 {[%clk 0:02:15]} 22. Nb7 {[%clk 0:02:30]}  Rxa1 {[%clk 0:01:49]} 23. Rxa1 {[%clk 0:02:28]}  Re7 {[%clk 0:01:40]} 24. Nd6 {[%clk 0:02:25]}  Be6 {[%clk 0:01:37]} 25. Ra6 {[%clk 0:02:24]}  Rc7 {[%clk 0:01:37]} 26. Ke3 {[%clk 0:02:21]}  Kf8 {[%clk 0:01:28]} 27. Kd4 {[%clk 0:02:20]}  Ke7 {[%clk 0:01:26]} 28. Kc5 {[%clk 0:02:18]}  f6 {[%clk 0:01:25]} 29. Rxc6 {[%clk 0:02:14]}  Rd7 {[%clk 0:01:18]} 30. Kd4 {[%clk 0:02:07]}  fxe5+ {[%clk 0:01:18]} 31. fxe5 {[%clk 0:02:08]}  Ra7 {[%clk 0:01:12]} 32. Nxb5 {[%clk 0:02:02]}  Ra4 {[%clk 0:01:12]} 33. Kc5 {[%clk 0:01:41]}  Bd7 {[%clk 0:01:07]} 34. Rxg6 {[%clk 0:01:37]}  Ra2 {[%clk 0:00:59]} 35. Rg7+ {[%clk 0:01:34]}  Kd8 {[%clk 0:00:59]} 36. Nd4 {[%clk 0:01:32]}  Ra7 {[%clk 0:00:50]} 37. Nc6+ {[%clk 0:01:30]} 1-0


[Site "https://www.chess.com"]

[Event "Titled Tuesday Blitz June 6 Late 2023"]
[White "Miller, Ike S"]
[Black "Szyszylo, Rafal"]
[WhiteFideId "2022532"]
[BlackFideId "1109626"]
[WhiteElo "2135"]
[BlackElo "1951"]
[Result "0-1"]
[Round "3"]
[TimeControl "180+2"]
[Date "2023.06.07"]
[WhiteClock "0:00:11"]
[BlackClock "0:00:30"]
[Board "138"]

1. d4 {[%clk 0:02:59]}  d6 {[%clk 0:02:59]} 2. c4 {[%clk 0:02:59]}  Nf6 {[%clk 0:02:58]} 3. Nc3 {[%clk 0:02:59]}  g6 {[%clk 0:02:58]} 4. e4 {[%clk 0:03:00]}  Bg7 {[%clk 0:02:59]} 5. Bd3 {[%clk 0:03:00]}  O-O {[%clk 0:02:58]} 6. Nge2 {[%clk 0:03:01]}  Nbd7 {[%clk 0:02:57]} 7. Bc2 {[%clk 0:03:01]}  e5 {[%clk 0:02:57]} 8. d5 {[%clk 0:03:02]}  a5 {[%clk 0:02:56]} 9. O-O {[%clk 0:03:02]}  Ne8 {[%clk 0:02:55]} 10. Be3 {[%clk 0:03:02]}  f5 {[%clk 0:02:55]} 11. exf5 {[%clk 0:03:03]}  gxf5 {[%clk 0:02:55]} 12. f3 {[%clk 0:03:04]}  b6 {[%clk 0:02:51]} 13. Qd2 {[%clk 0:02:58]}  Nc5 {[%clk 0:02:31]} 14. b3 {[%clk 0:02:57]}  Nf6 {[%clk 0:02:23]} 15. a3 {[%clk 0:02:55]}  Na6 {[%clk 0:02:20]} 16. Nb5 {[%clk 0:02:31]}  Rf7 {[%clk 0:02:06]} 17. b4 {[%clk 0:02:30]}  Bd7 {[%clk 0:01:57]} 18. bxa5 {[%clk 0:02:13]}  bxa5 {[%clk 0:01:55]} 19. Qxa5 {[%clk 0:02:13]}  Nh5 {[%clk 0:01:32]} 20. Qd2 {[%clk 0:01:55]}  Qh4 {[%clk 0:01:15]} 21. Bb3 {[%clk 0:00:58]}  Nc5 {[%clk 0:01:08]} 22. Bxc5 {[%clk 0:00:55]}  dxc5 {[%clk 0:01:09]} 23. Nxc7 {[%clk 0:00:42]}  Rd8 {[%clk 0:01:08]} 24. d6 {[%clk 0:00:36]}  e4 {[%clk 0:01:02]} 25. g3 {[%clk 0:00:18]}  Qh3 {[%clk 0:00:57]} 26. Rad1 {[%clk 0:00:18]}  f4 {[%clk 0:00:51]} 27. Nxf4 {[%clk 0:00:17]}  Nxf4 {[%clk 0:00:43]} 28. gxf4 {[%clk 0:00:17]}  exf3 {[%clk 0:00:38]} 29. Kh1 {[%clk 0:00:12]}  Bd4 {[%clk 0:00:35]} 30. Rg1+ {[%clk 0:00:12]}  Bxg1 {[%clk 0:00:34]} 31. Rxg1+ {[%clk 0:00:13]}  Rg7 {[%clk 0:00:29]} 32. Rxg7+ {[%clk 0:00:11]}  Kxg7 {[%clk 0:00:30]} 0-1


[Site "https://www.chess.com"]

[Event "Titled Tuesday Blitz June 6 Late 2023"]
[White "Ladan, Nicholas"]
[Black "Bogaudinov, Rushan"]
[WhiteFideId "30918855"]
[BlackFideId "4129288"]
[WhiteElo "2167"]
[BlackElo "1967"]
[Result "1-0"]
[Round "3"]
[TimeControl "180+2"]
[Date "2023.06.07"]
[WhiteClock "0:01:09"]
[BlackClock "0:00:12"]
[Board "142"]

1. d4 {[%clk 0:03:00]}  d5 {[%clk 0:02:59]} 2. Nf3 {[%clk 0:03:01]}  e6 {[%clk 0:02:56]} 3. Bf4 {[%clk 0:03:01]}  c5 {[%clk 0:02:56]} 4. e3 {[%clk 0:03:01]}  Nc6 {[%clk 0:02:55]} 5. c3 {[%clk 0:03:02]}  Nf6 {[%clk 0:02:55]} 6. Nbd2 {[%clk 0:03:02]}  Bd6 {[%clk 0:02:55]} 7. Bg3 {[%clk 0:03:01]}  O-O {[%clk 0:02:53]} 8. Bd3 {[%clk 0:03:01]}  Re8 {[%clk 0:02:53]} 9. Ne5 {[%clk 0:02:55]}  Bxe5 {[%clk 0:02:48]} 10. dxe5 {[%clk 0:02:55]}  Nd7 {[%clk 0:02:48]} 11. f4 {[%clk 0:02:54]}  f5 {[%clk 0:02:40]} 12. exf6 {[%clk 0:02:51]}  Nxf6 {[%clk 0:02:38]} 13. Bh4 {[%clk 0:02:51]}  e5 {[%clk 0:02:34]} 14. O-O {[%clk 0:02:49]}  e4 {[%clk 0:02:29]} 15. Bb5 {[%clk 0:02:46]}  c4 {[%clk 0:02:12]} 16. Bxc6 {[%clk 0:02:22]}  bxc6 {[%clk 0:02:12]} 17. Nb1 {[%clk 0:02:21]}  Qb6 {[%clk 0:02:07]} 18. Qd2 {[%clk 0:02:20]}  Ng4 {[%clk 0:02:03]} 19. Bf2 {[%clk 0:02:15]}  Rb8 {[%clk 0:02:03]} 20. h3 {[%clk 0:02:12]}  Qxb2 {[%clk 0:01:47]} 21. Qxb2 {[%clk 0:02:10]}  Rxb2 {[%clk 0:01:48]} 22. hxg4 {[%clk 0:02:09]}  Bxg4 {[%clk 0:01:48]} 23. Na3 {[%clk 0:02:05]}  Rb6 {[%clk 0:01:31]} 24. Rfb1 {[%clk 0:02:01]}  Reb8 {[%clk 0:01:27]} 25. Bh4 {[%clk 0:01:57]}  Kf7 {[%clk 0:01:21]} 26. Kf2 {[%clk 0:01:55]}  h6 {[%clk 0:01:10]} 27. Rxb6 {[%clk 0:01:49]}  axb6 {[%clk 0:01:08]} 28. Nc2 {[%clk 0:01:48]}  Ke6 {[%clk 0:00:59]} 29. a4 {[%clk 0:01:47]}  Ra8 {[%clk 0:00:58]} 30. Kg3 {[%clk 0:01:42]}  Bh5 {[%clk 0:00:50]} 31. Nd4+ {[%clk 0:01:39]}  Kd7 {[%clk 0:00:46]} 32. f5 {[%clk 0:01:37]}  g5 {[%clk 0:00:40]} 33. fxg6 {[%clk 0:01:35]}  Bxg6 {[%clk 0:00:40]} 34. Bf6 {[%clk 0:01:35]}  c5 {[%clk 0:00:36]} 35. Ne2 {[%clk 0:01:32]}  Ke6 {[%clk 0:00:32]} 36. Bg7 {[%clk 0:01:29]}  Bf7 {[%clk 0:00:28]} 37. Bxh6 {[%clk 0:01:27]}  Kf5 {[%clk 0:00:24]} 38. Bf4 {[%clk 0:01:27]}  Be8 {[%clk 0:00:23]} 39. Rb1 {[%clk 0:01:22]}  Ra6 {[%clk 0:00:21]} 40. Kh4 {[%clk 0:01:18]}  Bxa4 {[%clk 0:00:21]} 41. g4+ {[%clk 0:01:17]}  Kg6 {[%clk 0:00:21]} 42. Be5 {[%clk 0:01:16]}  Bc2 {[%clk 0:00:17]} 43. Nf4+ {[%clk 0:01:16]}  Kf7 {[%clk 0:00:17]} 44. Rf1 {[%clk 0:01:15]}  d4 {[%clk 0:00:14]} 45. exd4 {[%clk 0:01:11]}  cxd4 {[%clk 0:00:14]} 46. Bxd4 {[%clk 0:01:11]}  b5 {[%clk 0:00:14]} 47. g5 {[%clk 0:01:10]}  Bd3 {[%clk 0:00:12]} 48. Nxd3+ {[%clk 0:01:09]}  Ke6 {[%clk 0:00:12]} 49. Nc5+ {[%clk 0:01:09]} 1-0


[Site "https://www.chess.com"]

[Event "Titled Tuesday Blitz June 6 Late 2023"]
[White "SergioMoralesG"]
[Black "Kaganskiy, Gleb"]
[BlackFideId "4132025"]
[WhiteElo "2498"]
[BlackElo "2165"]
[Result "0-1"]
[Round "3"]
[TimeControl "180+2"]
[Date "2023.06.07"]
[WhiteClock "0:00:02"]
[BlackClock "0:00:10"]
[Board "144"]

1. e4 {[%clk 0:03:00]}  e6 {[%clk 0:02:59]} 2. d3 {[%clk 0:02:59]}  d5 {[%clk 0:03:00]} 3. Qe2 {[%clk 0:02:59]}  dxe4 {[%clk 0:02:54]} 4. dxe4 {[%clk 0:02:59]}  Nc6 {[%clk 0:02:54]} 5. c3 {[%clk 0:02:56]}  e5 {[%clk 0:02:54]} 6. Nf3 {[%clk 0:02:55]}  a5 {[%clk 0:02:52]} 7. g3 {[%clk 0:02:52]}  Bc5 {[%clk 0:02:51]} 8. Bg2 {[%clk 0:02:51]}  Nf6 {[%clk 0:02:48]} 9. O-O {[%clk 0:02:42]}  O-O {[%clk 0:02:47]} 10. Nbd2 {[%clk 0:02:33]}  a4 {[%clk 0:02:44]} 11. Nc4 {[%clk 0:02:30]}  Re8 {[%clk 0:02:42]} 12. Bd2 {[%clk 0:02:11]}  b6 {[%clk 0:02:41]} 13. b4 {[%clk 0:01:56]}  axb3 {[%clk 0:02:38]} 14. axb3 {[%clk 0:01:57]}  Rxa1 {[%clk 0:02:39]} 15. Rxa1 {[%clk 0:01:57]}  b5 {[%clk 0:02:27]} 16. Nb2 {[%clk 0:01:52]}  b4 {[%clk 0:02:25]} 17. Nc4 {[%clk 0:01:47]}  bxc3 {[%clk 0:02:23]} 18. Bxc3 {[%clk 0:01:48]}  Nd4 {[%clk 0:02:19]} 19. Bxd4 {[%clk 0:01:40]}  Bxd4 {[%clk 0:02:13]} 20. Nxd4 {[%clk 0:01:38]}  exd4 {[%clk 0:02:13]} 21. Qd3 {[%clk 0:01:35]}  Be6 {[%clk 0:02:05]} 22. Ne5 {[%clk 0:01:29]}  c5 {[%clk 0:01:48]} 23. f4 {[%clk 0:01:26]}  Qb6 {[%clk 0:01:45]} 24. Rb1 {[%clk 0:00:59]}  Rb8 {[%clk 0:01:36]} 25. Nc4 {[%clk 0:00:58]}  Bxc4 {[%clk 0:01:31]} 26. Qxc4 {[%clk 0:00:58]}  Ng4 {[%clk 0:01:26]} 27. Rc1 {[%clk 0:00:32]}  g6 {[%clk 0:00:57]} 28. Bh3 {[%clk 0:00:22]}  Ne3 {[%clk 0:00:55]} 29. Qxc5 {[%clk 0:00:22]}  Qxc5 {[%clk 0:00:37]} 30. Rxc5 {[%clk 0:00:23]}  Rxb3 {[%clk 0:00:37]} 31. e5 {[%clk 0:00:23]}  d3 {[%clk 0:00:35]} 32. Rc8+ {[%clk 0:00:20]}  Kg7 {[%clk 0:00:35]} 33. Rd8 {[%clk 0:00:21]}  h5 {[%clk 0:00:21]} 34. Kf2 {[%clk 0:00:18]}  Ng4+ {[%clk 0:00:21]} 35. Bxg4 {[%clk 0:00:18]}  hxg4 {[%clk 0:00:22]} 36. Ke3 {[%clk 0:00:17]}  Rb2 {[%clk 0:00:20]} 37. Kxd3 {[%clk 0:00:15]}  Rxh2 {[%clk 0:00:20]} 38. Rd7 {[%clk 0:00:15]}  Kf8 {[%clk 0:00:18]} 39. Ke4 {[%clk 0:00:15]}  Rg2 {[%clk 0:00:17]} 40. Rd3 {[%clk 0:00:15]}  Ke7 {[%clk 0:00:17]} 41. Ra3 {[%clk 0:00:15]}  Ke6 {[%clk 0:00:17]} 42. Ra6+ {[%clk 0:00:15]}  Ke7 {[%clk 0:00:17]} 43. Ra7+ {[%clk 0:00:15]}  Ke6 {[%clk 0:00:16]} 44. Ra6+ {[%clk 0:00:15]}  Ke7 {[%clk 0:00:17]} 45. Ra3 {[%clk 0:00:12]}  Ke6 {[%clk 0:00:17]} 46. Rb3 {[%clk 0:00:07]}  Rg1 {[%clk 0:00:15]} 47. Rb6+ {[%clk 0:00:06]}  Ke7 {[%clk 0:00:15]} 48. Rb7+ {[%clk 0:00:06]}  Ke6 {[%clk 0:00:15]} 49. Rb6+ {[%clk 0:00:06]}  Ke7 {[%clk 0:00:15]} 50. Rb4 {[%clk 0:00:05]}  Rxg3 {[%clk 0:00:13]} 51. Kd5 {[%clk 0:00:02]}  Rd3+ {[%clk 0:00:12]} 52. Ke4 {[%clk 0:00:03]}  Rd1 {[%clk 0:00:11]} 53. Rb7+ {[%clk 0:00:02]}  Rd7 {[%clk 0:00:10]} 0-1


[Site "https://www.chess.com"]